[Event "Elitserien 2019/2020, round 7-9"]
[Site "Elite stadshotellet, Kungsgatan 6, Vaxjo, Sweden"]
[Date "2020.10.16"]
[Round "1.6"]
[White "Trost, Edvin"]
[Black "Wenzel, Birger"]
[Result "1-0"]
[TimeControl "90 minutes for 40 moves + 30 minutes for the rest of the game + 30 seconds per move from move one."]
[WhiteTitle "CM"]
[WhiteFideId "1729519"]
[BlackFideId "4657497"]
[WhiteElo "2111"]
[BlackElo "2059"]

1. d4 {[%clk 01:30:56]} {[%emt 00:00:04]} Nf6 {[%clk 01:30:38]} {[%emt
00:00:22]} 2. c4 {[%clk 01:31:02]} {[%emt 00:00:24]} e6 {[%clk 01:31:00]}
{[%emt 00:00:07]} 3. Nf3 {[%clk 01:31:26]} {[%emt 00:00:08]} b6 {[%clk
01:31:21]} {[%emt 00:00:07]} 4. g3 {[%clk 01:31:19]} {[%emt 00:00:39]} Bb7
{[%clk 01:31:44]} {[%emt 00:00:06]} 5. Bg2 {[%clk 01:31:44]} {[%emt 00:00:05]}
Be7 {[%clk 01:32:08]} {[%emt 00:00:06]} 6. O-O {[%clk 01:31:50]} {[%emt
00:00:25]} O-O {[%clk 01:32:31]} {[%emt 00:00:06]} 7. d5 {[%clk 01:31:14]}
{[%emt 00:01:07]} exd5 {[%clk 01:32:29]} {[%emt 00:00:31]} 8. Nh4 {[%clk
01:31:25]} {[%emt 00:00:19]} c6 {[%clk 01:32:44]} {[%emt 00:00:13]} 9. cxd5
{[%clk 01:30:27]} {[%emt 00:01:31]} Nxd5 {[%clk 01:33:01]} {[%emt 00:00:13]} 10.
Nf5 {[%clk 01:30:09]} {[%emt 00:00:48]} Nc7 {[%clk 01:32:34]} {[%emt 00:00:56]}
11. e4 {[%clk 01:26:59]} {[%emt 00:03:40]} d5 {[%clk 01:31:54]} {[%emt
00:01:09]} 12. Nc3 {[%clk 01:26:00]} {[%emt 00:01:31]} Nba6 {[%clk 01:31:05]}
{[%emt 00:01:19]} 13. Qg4 {[%clk 01:10:26]} {[%emt 00:16:04]} Bf6 {[%clk
01:22:52]} {[%emt 00:08:42]} 14. exd5 {[%clk 00:58:05]} {[%emt 00:12:52]} cxd5
{[%clk 01:18:41]} {[%emt 00:04:40]} 15. Rd1 {[%clk 00:50:54]} {[%emt 00:07:42]}
Bxc3 {[%clk 00:23:57]} {[%emt 00:55:13]} 16. bxc3 {[%clk 00:51:14]} {[%emt
00:00:12]} Ne6 {[%clk 00:24:16]} {[%emt 00:00:09]} 17. c4 {[%clk 00:47:14]}
{[%emt 00:04:31]} Qf6 {[%clk 00:20:54]} {[%emt 00:03:52]} 18. Rb1 {[%clk
00:34:02]} {[%emt 00:13:42]} Rfe8 {[%clk 00:09:24]} {[%emt 00:11:59]} 19. cxd5
{[%clk 00:31:59]} {[%emt 00:02:33]} Nec5 {[%clk 00:08:34]} {[%emt 00:01:19]} 20.
Bb2 {[%clk 00:25:53]} {[%emt 00:06:37]} Qg6 {[%clk 00:08:47]} {[%emt 00:00:17]}
21. Qf4 {[%clk 00:13:42]} {[%emt 00:12:42]} Re2 {[%clk 00:05:13]} {[%emt
00:04:03]} 22. Bf3 {[%clk 00:09:49]} {[%emt 00:04:24]} Ree8 {[%clk 00:03:41]}
{[%emt 00:02:01]} 23. Nxg7 {[%clk 00:06:29]} {[%emt 00:03:51]} Nd3 {[%clk
00:02:38]} {[%emt 00:01:33]} 24. Rxd3 {[%clk 00:06:08]} {[%emt 00:00:52]} Qxd3
{[%clk 00:02:59]} {[%emt 00:00:08]} 25. Rd1 {[%clk 00:06:29]} {[%emt 00:00:09]}
Qg6 {[%clk 00:01:47]} {[%emt 00:01:42]} 26. Bh5 {[%clk 00:06:12]} {[%emt
00:00:47]} 1-0

[Event "Elitserien 2019/2020, round 7-9"]
[Site "Elite stadshotellet, Kungsgatan 6, Vaxjo, Sweden"]
[Date "2020.10.16"]
[Round "1.7"]
[White "Moreau, Teodor"]
[Black "Crevatin, Leo"]
[Result "1-0"]
[TimeControl "90 minutes for 40 moves + 30 minutes for the rest of the game + 30 seconds per move from move one."]
[WhiteTitle "FM"]
[BlackTitle "CM"]
[WhiteFideId "1701177"]
[BlackFideId "1726307"]
[WhiteElo "2342"]
[BlackElo "2247"]

1. d4 {[%clk 01:30:52]} {[%emt 00:00:07]} d5 {[%clk 01:30:59]} {[%emt
00:00:02]} 2. c4 {[%clk 01:30:55]} {[%emt 00:00:26]} c6 {[%clk 01:31:22]}
{[%emt 00:00:07]} 3. Nc3 {[%clk 01:30:57]} {[%emt 00:00:27]} Nf6 {[%clk
01:29:14]} {[%emt 00:02:39]} 4. e3 {[%clk 01:31:13]} {[%emt 00:00:14]} e6
{[%clk 01:29:37]} {[%emt 00:00:07]} 5. Nf3 {[%clk 01:31:24]} {[%emt 00:00:19]}
Nbd7 {[%clk 01:29:33]} {[%emt 00:00:35]} 6. Bd3 {[%clk 01:30:34]} {[%emt
00:01:19]} dxc4 {[%clk 01:29:56]} {[%emt 00:00:08]} 7. Bxc4 {[%clk 01:30:55]}
{[%emt 00:00:08]} b5 {[%clk 01:30:23]} {[%emt 00:00:04]} 8. Bd3 {[%clk
01:27:24]} {[%emt 00:03:59]} Bd6 {[%clk 01:29:37]} {[%emt 00:01:17]} 9. e4
{[%clk 01:21:03]} {[%emt 00:06:51]} e5 {[%clk 01:29:42]} {[%emt 00:00:25]} 10.
O-O {[%clk 01:20:21]} {[%emt 00:01:11]} O-O {[%clk 01:29:38]} {[%emt 00:00:35]}
11. h3 {[%clk 01:15:53]} {[%emt 00:04:58]} Re8 {[%clk 01:23:16]} {[%emt
00:06:53]} 12. a3 {[%clk 01:04:49]} {[%emt 00:11:34]} a6 {[%clk 01:16:39]}
{[%emt 00:07:07]} 13. Re1 {[%clk 00:53:44]} {[%emt 00:11:33]} exd4 {[%clk
01:04:42]} {[%emt 00:12:29]} 14. Nxd4 {[%clk 00:53:25]} {[%emt 00:00:48]} Ne5
{[%clk 01:03:43]} {[%emt 00:01:29]} 15. Bf1 {[%clk 00:48:17]} {[%emt 00:05:37]}
c5 {[%clk 01:00:30]} {[%emt 00:03:44]} 16. Nf5 {[%clk 00:47:13]} {[%emt
00:01:34]} Bxf5 {[%clk 00:59:31]} {[%emt 00:01:29]} 17. exf5 {[%clk 00:47:00]}
{[%emt 00:00:41]} Qc7 {[%clk 00:49:56]} {[%emt 00:10:07]} 18. Bg5 {[%clk
00:43:32]} {[%emt 00:03:57]} Ned7 {[%clk 00:49:46]} {[%emt 00:00:41]} 19. Rxe8+
{[%clk 00:30:31]} {[%emt 00:13:32]} Rxe8 {[%clk 00:49:57]} {[%emt 00:00:19]} 20.
a4 {[%clk 00:30:48]} {[%emt 00:00:12]} b4 {[%clk 00:45:01]} {[%emt 00:05:27]}
21. Nd5 {[%clk 00:30:31]} {[%emt 00:00:44]} Nxd5 {[%clk 00:44:12]} {[%emt
00:01:22]} 22. Qxd5 {[%clk 00:30:17]} {[%emt 00:00:43]} Nb6 {[%clk 00:40:57]}
{[%emt 00:03:45]} 23. Qd2 {[%clk 00:22:59]} {[%emt 00:07:48]} a5 {[%clk
00:32:51]} {[%emt 00:08:36]} 24. Bb5 {[%clk 00:17:15]} {[%emt 00:06:13]} Rf8
{[%clk 00:31:38]} {[%emt 00:01:44]} 25. Rc1 {[%clk 00:15:22]} {[%emt 00:02:22]}
h6 {[%clk 00:27:53]} {[%emt 00:04:16]} 26. Be3 {[%clk 00:15:02]} {[%emt
00:00:48]} Rd8 {[%clk 00:26:37]} {[%emt 00:01:47]} 27. Qc2 {[%clk 00:13:27]}
{[%emt 00:02:05]} Be7 {[%clk 00:20:33]} {[%emt 00:06:35]} 28. g3 {[%clk
00:11:21]} {[%emt 00:02:36]} c4 {[%clk 00:19:17]} {[%emt 00:01:47]} 29. Bxb6
{[%clk 00:07:02]} {[%emt 00:04:49]} Qxb6 {[%clk 00:19:45]} {[%emt 00:00:02]} 30.
Bxc4 {[%clk 00:07:18]} {[%emt 00:00:14]} Bg5 {[%clk 00:16:20]} {[%emt
00:03:55]} 31. Rd1 {[%clk 00:06:27]} {[%emt 00:01:19]} Rxd1+ {[%clk 00:16:09]}
{[%emt 00:00:42]} 32. Qxd1 {[%clk 00:06:48]} {[%emt 00:00:08]} Qd8 {[%clk
00:15:41]} {[%emt 00:00:59]} 33. Qf3 {[%clk 00:06:07]} {[%emt 00:01:10]} Qc7
{[%clk 00:15:05]} {[%emt 00:01:07]} 34. Qe4 {[%clk 00:05:46]} {[%emt 00:00:50]}
Be7 {[%clk 00:09:07]} {[%emt 00:06:28]} 35. f6 {[%clk 00:02:03]} {[%emt
00:04:14]} Bf8 {[%clk 00:05:56]} {[%emt 00:03:42]} 36. fxg7 {[%clk 00:01:43]}
{[%emt 00:00:49]} Bxg7 {[%clk 00:05:39]} {[%emt 00:00:47]} 37. b3 {[%clk
00:01:52]} {[%emt 00:00:21]} Kf8 {[%clk 00:03:36]} {[%emt 00:02:34]} 38. Kg2
{[%clk 00:01:46]} {[%emt 00:00:35]} Bf6 {[%clk 00:03:15]} {[%emt 00:00:51]} 39.
Qd5 {[%clk 00:01:08]} {[%emt 00:01:08]} Kg7 {[%clk 00:03:29]} {[%emt 00:00:15]}
40. Kg1 {[%clk 00:00:46]} {[%emt 00:00:52]} Bc3 {[%clk 00:02:05]} {[%emt
00:01:55]} 41. Qf5 {[%clk 00:00:33]} {[%emt 00:00:42]} Bf6 {[%clk 00:27:31]}
{[%emt 00:05:04]} 42. Bd3 {[%clk 00:26:51]} {[%emt 00:04:14]} Qc1+ {[%clk
00:25:11]} {[%emt 00:02:49]} 43. Kg2 {[%clk 00:25:16]} {[%emt 00:02:04]} Qg5
{[%clk 00:25:05]} {[%emt 00:00:37]} 44. Qe4 {[%clk 00:24:34]} {[%emt 00:01:11]}
Kf8 {[%clk 00:20:21]} {[%emt 00:05:16]} 45. Bc4 {[%clk 00:21:46]} {[%emt
00:03:17]} Qe5 {[%clk 00:18:54]} {[%emt 00:01:57]} 46. Qb7 {[%clk 00:20:40]}
{[%emt 00:01:34]} Be7 {[%clk 00:17:56]} {[%emt 00:01:29]} 47. h4 {[%clk
00:19:06]} {[%emt 00:02:03]} Kg7 {[%clk 00:17:09]} {[%emt 00:01:19]} 48. Qf3
{[%clk 00:18:21]} {[%emt 00:01:14]} Bf6 {[%clk 00:16:29]} {[%emt 00:01:10]} 49.
Qa8 {[%clk 00:17:05]} {[%emt 00:01:45]} Be7 {[%clk 00:16:13]} {[%emt 00:00:45]}
50. Qe8 {[%clk 00:11:31]} {[%emt 00:06:05]} Qf6 {[%clk 00:16:07]} {[%emt
00:00:38]} 51. Qd7 {[%clk 00:08:54]} {[%emt 00:03:06]} Qe5 {[%clk 00:14:47]}
{[%emt 00:01:51]} 52. Kh3 {[%clk 00:07:32]} {[%emt 00:01:49]} Qd6 {[%clk
00:12:07]} {[%emt 00:03:11]} 53. Qf5 {[%clk 00:06:25]} {[%emt 00:01:37]} Qf6
{[%clk 00:11:08]} {[%emt 00:01:31]} 54. Qxa5 {[%clk 00:04:48]} {[%emt
00:02:08]} Qxf2 {[%clk 00:11:36]} {[%emt 00:00:02]} 55. Qe5+ {[%clk 00:05:06]}
{[%emt 00:00:10]} Bf6 {[%clk 00:10:58]} {[%emt 00:01:10]} 56. Qd5 {[%clk
00:03:09]} {[%emt 00:02:26]} Bd4 {[%clk 00:10:44]} {[%emt 00:00:42]} 57. a5
{[%clk 00:03:23]} {[%emt 00:00:19]} Bc5 {[%clk 00:09:18]} {[%emt 00:01:54]} 58.
Qe5+ {[%clk 00:03:19]} {[%emt 00:00:36]} Kf8 {[%clk 00:08:37]} {[%emt
00:01:12]} 59. Kg4 {[%clk 00:02:03]} {[%emt 00:01:45]} Qg1 {[%clk 00:07:41]}
{[%emt 00:01:27]} 60. Kh5 {[%clk 00:01:11]} {[%emt 00:01:21]} Qe3 {[%emt
00:04:11]} 61. Qf5 {[%clk 00:00:47]} {[%emt 00:00:53]} Qe7 {[%clk 00:03:51]}
{[%emt 00:00:39]} 62. Kxh6 {[%clk 00:01:03]} {[%emt 00:00:14]} Be3+ {[%clk
00:04:12]} {[%emt 00:00:11]} 63. Kh5 {[%clk 00:01:14]} {[%emt 00:00:19]} Qc7
{[%clk 00:03:07]} {[%emt 00:01:35]} 64. a6 {[%clk 00:01:27]} {[%emt 00:00:17]}
Bd4 {[%clk 00:03:02]} {[%emt 00:00:35]} 65. Kg4 {[%clk 00:01:34]} {[%emt
00:00:22]} f6 {[%clk 00:02:59]} {[%emt 00:00:33]} 66. Qd5 {[%clk 00:01:11]}
{[%emt 00:00:53]} Qg7+ {[%clk 00:03:05]} {[%emt 00:00:25]} 67. Kf3 {[%clk
00:01:15]} {[%emt 00:00:26]} Qa7 {[%clk 00:02:59]} {[%emt 00:00:36]} 68. Ke4
{[%clk 00:01:15]} {[%emt 00:00:29]} Bf2 {[%clk 00:03:15]} {[%emt 00:00:15]} 69.
Qg8+ {[%clk 00:01:00]} {[%emt 00:00:45]} Ke7 {[%clk 00:03:43]} {[%emt
00:00:02]} 70. Qf7+ {[%clk 00:01:19]} {[%emt 00:00:07]} Kd6 {[%clk 00:04:10]}
{[%emt 00:00:06]} 71. Qxf6+ {[%clk 00:01:37]} {[%emt 00:00:12]} 1-0

[Event "Elitserien 2019/2020, round 7-9"]
[Site "Elite stadshotellet, Kungsgatan 6, Vaxjo, Sweden"]
[Date "2020.10.16"]
[Round "1.8"]
[White "Tuomainen, Felix"]
[Black "Nordstrom, Felix"]
[Result "1/2-1/2"]
[TimeControl "90 minutes for 40 moves + 30 minutes for the rest of the game + 30 seconds per move from move one."]
[WhiteTitle "FM"]
[BlackTitle "FM"]
[WhiteFideId "1720813"]
[BlackFideId "1701509"]
[WhiteElo "2208"]
[BlackElo "2096"]

1. d4 {[%clk 01:30:54]} {[%emt 00:00:05]} d5 {[%clk 01:30:40]} {[%emt
00:00:20]} 2. c4 {[%clk 01:31:09]} {[%emt 00:00:15]} dxc4 {[%clk 01:30:30]}
{[%emt 00:00:40]} 3. e3 {[%clk 01:31:17]} {[%emt 00:00:23]} Nf6 {[%clk
01:30:22]} {[%emt 00:00:37]} 4. Bxc4 {[%clk 01:31:37]} {[%emt 00:00:10]} e6
{[%clk 01:30:38]} {[%emt 00:00:14]} 5. Nf3 {[%clk 01:31:29]} {[%emt 00:00:37]}
c5 {[%clk 01:30:29]} {[%emt 00:00:39]} 6. O-O {[%clk 01:31:28]} {[%emt
00:00:31]} a6 {[%clk 01:30:30]} {[%emt 00:00:29]} 7. a4 {[%clk 01:31:29]}
{[%emt 00:00:29]} Nc6 {[%clk 01:29:20]} {[%emt 00:01:40]} 8. Qe2 {[%clk
01:30:33]} {[%emt 00:01:26]} cxd4 {[%clk 01:28:32]} {[%emt 00:01:18]} 9. Rd1
{[%clk 01:30:55]} {[%emt 00:00:08]} Be7 {[%clk 01:27:50]} {[%emt 00:01:12]} 10.
exd4 {[%clk 01:30:43]} {[%emt 00:00:42]} Nb4 {[%clk 01:26:30]} {[%emt
00:01:50]} 11. Ne5 {[%clk 01:26:48]} {[%emt 00:04:26]} O-O {[%clk 01:24:41]}
{[%emt 00:02:18]} 12. Bg5 {[%clk 01:25:34]} {[%emt 00:01:44]} Nfd5 {[%clk
01:16:39]} {[%emt 00:08:32]} 13. Bxe7 {[%clk 01:23:55]} {[%emt 00:02:09]} Qxe7
{[%clk 01:16:12]} {[%emt 00:00:57]} 14. Nc3 {[%clk 01:20:50]} {[%emt 00:03:34]}
Bd7 {[%clk 01:05:49]} {[%emt 00:10:53]} 15. Qe4 {[%clk 01:11:54]} {[%emt
00:09:23]} Rfd8 {[%clk 00:58:05]} {[%emt 00:08:17]} 16. Re1 {[%clk 01:01:31]}
{[%emt 00:10:54]} Be8 {[%clk 00:51:10]} {[%emt 00:07:25]} 17. Rac1 {[%clk
00:51:21]} {[%emt 00:10:38]} Qd6 {[%clk 00:46:42]} {[%emt 00:04:59]} 18. Qf3
{[%clk 00:33:19]} {[%emt 00:18:29]} Nf6 {[%clk 00:34:36]} {[%emt 00:12:40]} 19.
Red1 {[%clk 00:27:35]} {[%emt 00:06:14]} Rab8 {[%clk 00:30:26]} {[%emt
00:04:39]} 20. Bb3 {[%clk 00:25:26]} {[%emt 00:02:39]} Nbd5 {[%clk 00:23:58]}
{[%emt 00:06:58]} 21. h3 {[%clk 00:20:47]} {[%emt 00:05:09]} Qb6 {[%clk
00:21:04]} {[%emt 00:03:23]} 22. Ne2 {[%clk 00:18:02]} {[%emt 00:03:13]} Qd6
{[%clk 00:18:52]} {[%emt 00:02:43]} 23. Ng3 {[%clk 00:17:54]} {[%emt 00:00:39]}
Rbc8 {[%clk 00:17:58]} {[%emt 00:01:24]} 24. Ne4 {[%clk 00:13:09]} {[%emt
00:05:13]} Nxe4 {[%clk 00:17:52]} {[%emt 00:00:38]} 25. Qxe4 {[%clk 00:13:19]}
{[%emt 00:00:20]} b6 {[%clk 00:13:22]} {[%emt 00:04:59]} 26. Bc2 {[%clk
00:11:49]} {[%emt 00:02:00]} g6 {[%clk 00:11:18]} {[%emt 00:02:34]} 27. Qe2
{[%clk 00:10:02]} {[%emt 00:02:13]} b5 {[%clk 00:09:29]} {[%emt 00:02:23]} 28.
axb5 {[%clk 00:09:59]} {[%emt 00:00:33]} Bxb5 {[%clk 00:08:54]} {[%emt
00:01:05]} 29. Qf3 {[%clk 00:10:21]} {[%emt 00:00:07]} Qe7 {[%clk 00:07:24]}
{[%emt 00:02:01]} 30. Ng4 {[%clk 00:09:02]} {[%emt 00:01:50]} Qg5 {[%clk
00:06:10]} {[%emt 00:01:43]} 31. g3 {[%clk 00:07:19]} {[%emt 00:02:13]} h5
{[%clk 00:04:10]} {[%emt 00:02:30]} 32. Ne3 {[%clk 00:06:54]} {[%emt 00:00:56]}
Bc6 {[%clk 00:02:00]} {[%emt 00:02:40]} 33. Nxd5 {[%clk 00:02:14]} {[%emt
00:05:10]} Bxd5 {[%clk 00:01:32]} {[%emt 00:00:58]} 34. Qe3 {[%clk 00:02:37]}
{[%emt 00:00:07]} Qe7 {[%clk 00:01:14]} {[%emt 00:00:47]} 35. Be4 {[%clk
00:02:28]} {[%emt 00:00:39]} Qb7 {[%clk 00:01:09]} {[%emt 00:00:36]} 36. Bxd5
{[%clk 00:01:37]} {[%emt 00:01:22]} Qxd5 {[%clk 00:01:17]} {[%emt 00:00:21]} 37.
Rxc8 {[%clk 00:00:47]} {[%emt 00:01:19]} Rxc8 {[%clk 00:01:45]} {[%emt
00:00:02]} 38. Ra1 {[%clk 00:00:45]} {[%emt 00:00:32]} Qb5 {[%clk 00:00:38]}
{[%emt 00:01:36]} 39. Qd2 {[%clk 00:00:41]} {[%emt 00:00:33]} Rd8 {[%clk
00:00:40]} {[%emt 00:00:31]} 40. Qc3 {[%clk 00:00:42]} {[%emt 00:00:29]} Qb6
{[%clk 00:00:34]} {[%emt 00:00:36]} 41. Kg2 {[%clk 00:15:18]} {[%emt 00:15:51]}
Qb7+ {[%clk 00:25:22]} {[%emt 00:05:44]} 42. Kh2 {[%clk 00:14:38]} {[%emt
00:01:07]} Rd6 {[%clk 00:24:40]} {[%emt 00:01:13]} 43. Rc1 {[%clk 00:10:45]}
{[%emt 00:04:23]} Qb6 {[%clk 00:20:03]} {[%emt 00:05:06]} 44. Qc5 {[%clk
00:08:17]} {[%emt 00:03:00]} Qxb2 {[%clk 00:12:05]} {[%emt 00:08:27]} 45. Qxd6
{[%clk 00:08:16]} {[%emt 00:00:32]} Qxc1 {[%clk 00:12:20]} {[%emt 00:00:15]} 46.
Qxa6 {[%clk 00:08:26]} {[%emt 00:00:21]} Qd2 {[%clk 00:10:39]} {[%emt
00:02:08]} 47. Qa8+ {[%clk 00:07:00]} {[%emt 00:01:57]} Kg7 {[%clk 00:10:17]}
{[%emt 00:00:54]} 48. Qf3 {[%clk 00:07:25]} {[%emt 00:00:05]} Qxd4 {[%clk
00:10:36]} {[%emt 00:00:12]} 49. h4 {[%clk 00:07:34]} {[%emt 00:00:22]} Qf6
{[%clk 00:08:48]} {[%emt 00:02:17]} 50. Qe3 {[%clk 00:07:44]} {[%emt 00:00:21]}
e5 {[%clk 00:09:02]} {[%emt 00:00:15]} 51. Kg1 {[%clk 00:07:53]} {[%emt
00:00:21]} Qe6 {[%clk 00:08:50]} {[%emt 00:00:40]} 52. Qe4 {[%clk 00:07:57]}
{[%emt 00:00:26]} f6 {[%clk 00:08:04]} {[%emt 00:01:18]} 53. Qb7+ {[%clk
00:08:21]} {[%emt 00:00:06]} Qf7 {[%clk 00:08:10]} {[%emt 00:00:24]} 54. Qe4
{[%clk 00:08:43]} {[%emt 00:00:07]} Qe7 {[%clk 00:07:43]} {[%emt 00:00:57]} 55.
Qd5 {[%clk 00:08:38]} {[%emt 00:00:33]} g5 {[%clk 00:06:26]} {[%emt 00:01:50]}
56. hxg5 {[%clk 00:08:22]} {[%emt 00:00:46]} fxg5 {[%clk 00:06:54]} {[%emt
00:00:02]} 57. Qf3 {[%clk 00:07:35]} {[%emt 00:01:14]} Kh6 {[%clk 00:05:20]}
{[%emt 00:02:03]} 58. Qc6+ {[%clk 00:07:34]} {[%emt 00:00:32]} Kg7 {[%clk
00:04:56]} {[%emt 00:00:54]} 59. Qf3 {[%clk 00:07:57]} {[%emt 00:00:07]} Kh6
{[%clk 00:03:48]} {[%emt 00:01:40]} 1/2-1/2

[Event "Elitserien 2019/2020, round 7-9"]
[Site "Elite stadshotellet, Kungsgatan 6, Vaxjo, Sweden"]
[Date "2020.10.16"]
[Round "1.9"]
[White "Seo, Jung Min"]
[Black "Cuenca Jimenez, Jose Fernando"]
[Result "1/2-1/2"]
[TimeControl "90 minutes for 40 moves + 30 minutes for the rest of the game + 30 seconds per move from move one."]
[WhiteTitle "FM"]
[BlackTitle "GM"]
[WhiteFideId "1734687"]
[BlackFideId "2255570"]
[WhiteElo "2448"]
[BlackElo "2538"]

1. e4 {[%clk 01:30:59]} {[%emt 00:15:44]} e5 {[%clk 01:30:35]} {[%emt
00:00:26]} 2. Nf3 {[%clk 01:31:26]} {[%emt 00:00:03]} Nc6 {[%clk 01:30:56]}
{[%emt 00:00:09]} 3. Bc4 {[%clk 01:31:54]} {[%emt 00:00:03]} Bc5 {[%clk
01:29:33]} {[%emt 00:01:52]} 4. d3 {[%clk 01:30:27]} {[%emt 00:01:56]} Nf6
{[%clk 01:29:47]} {[%emt 00:00:18]} 5. c3 {[%clk 01:30:33]} {[%emt 00:00:23]}
O-O {[%clk 01:28:54]} {[%emt 00:01:22]} 6. O-O {[%clk 01:30:30]} {[%emt
00:00:33]} d5 {[%clk 01:29:16]} {[%emt 00:00:08]} 7. exd5 {[%clk 01:30:03]}
{[%emt 00:00:58]} Nxd5 {[%clk 01:29:41]} {[%emt 00:00:05]} 8. Nbd2 {[%clk
01:24:48]} {[%emt 00:05:45]} Bg4 {[%clk 01:25:46]} {[%emt 00:04:25]} 9. h3
{[%clk 01:19:08]} {[%emt 00:06:10]} Bh5 {[%clk 01:24:54]} {[%emt 00:01:21]} 10.
Ne4 {[%clk 01:19:30]} {[%emt 00:00:08]} Bb6 {[%clk 01:14:23]} {[%emt 00:11:02]}
11. Ng3 {[%clk 01:16:48]} {[%emt 00:03:12]} Bg6 {[%clk 01:12:59]} {[%emt
00:01:53]} 12. Re1 {[%clk 01:16:24]} {[%emt 00:00:54]} f6 {[%clk 00:43:27]}
{[%emt 00:30:03]} 13. Nh4 {[%clk 01:03:16]} {[%emt 00:13:38]} Bf7 {[%clk
00:43:22]} {[%emt 00:00:35]} 14. Qg4 {[%clk 01:03:19]} {[%emt 00:00:27]} Kh8
{[%clk 00:41:30]} {[%emt 00:02:22]} 15. Nhf5 {[%clk 01:01:24]} {[%emt
00:02:25]} Rg8 {[%clk 00:37:03]} {[%emt 00:04:57]} 16. Qf3 {[%clk 00:40:46]}
{[%emt 00:21:08]} Qd7 {[%clk 00:29:19]} {[%emt 00:08:14]} 17. Bb3 {[%clk
00:38:16]} {[%emt 00:03:00]} Rae8 {[%clk 00:21:53]} {[%emt 00:07:56]} 18. h4
{[%clk 00:34:50]} {[%emt 00:03:56]} Be6 {[%clk 00:18:47]} {[%emt 00:03:37]} 19.
h5 {[%clk 00:34:28]} {[%emt 00:00:52]} Nce7 {[%clk 00:11:18]} {[%emt 00:07:58]}
20. Nxe7 {[%clk 00:32:10]} {[%emt 00:02:48]} Rxe7 {[%clk 00:10:58]} {[%emt
00:00:50]} 21. Bd2 {[%clk 00:22:25]} {[%emt 00:10:15]} c6 {[%clk 00:10:29]}
{[%emt 00:00:59]} 22. Bd1 {[%clk 00:22:05]} {[%emt 00:00:50]} Rf7 {[%clk
00:05:02]} {[%emt 00:05:57]} 23. a4 {[%clk 00:19:38]} {[%emt 00:02:57]} a5
{[%clk 00:03:32]} {[%emt 00:01:59]} 24. Rc1 {[%clk 00:16:24]} {[%emt 00:03:44]}
g5 {[%clk 00:03:28]} {[%emt 00:00:34]} 25. d4 {[%clk 00:15:17]} {[%emt
00:01:38]} Nf4 {[%clk 00:02:55]} {[%emt 00:01:03]} 26. Bc2 {[%clk 00:13:28]}
{[%emt 00:02:19]} exd4 {[%clk 00:00:53]} {[%emt 00:02:33]} 27. Bxf4 {[%clk
00:10:49]} {[%emt 00:03:08]} gxf4 {[%clk 00:01:19]} {[%emt 00:00:03]} 28. Qxf4
{[%clk 00:11:07]} {[%emt 00:00:12]} Rg4 {[%clk 00:00:36]} {[%emt 00:01:14]} 29.
Qb8+ {[%clk 00:10:37]} {[%emt 00:01:00]} Rg8 {[%clk 00:00:46]} {[%emt
00:00:19]} 30. Qf4 {[%clk 00:11:04]} {[%emt 00:00:02]} Rg4 {[%clk 00:00:44]}
{[%emt 00:00:33]} 31. Qb8+ {[%clk 00:08:52]} {[%emt 00:02:43]} Rg8 {[%clk
00:01:09]} {[%emt 00:00:04]} 32. Qf4 {[%clk 00:09:21]} {[%emt 00:00:01]} d3
{[%clk 00:00:43]} {[%emt 00:00:57]} 33. Rcd1 {[%clk 00:09:12]} {[%emt
00:00:38]} Rg4 {[%clk 00:00:41]} {[%emt 00:00:32]} 34. Qb8+ {[%clk 00:08:49]}
{[%emt 00:00:53]} Rg8 {[%clk 00:01:10]} 35. Qf4 {[%clk 00:09:15]} {[%emt
00:00:05]} Rg4 {[%clk 00:00:43]} {[%emt 00:00:56]} 36. Qb8+ {[%clk 00:09:41]}
{[%emt 00:00:04]} Rg8 {[%clk 00:00:50]} {[%emt 00:00:23]} 37. Qf4 {[%clk
00:10:03]} {[%emt 00:00:08]} Rg4 {[%clk 00:00:34]} {[%emt 00:00:46]} 38. Qb8+
{[%clk 00:10:23]} {[%emt 00:00:10]} Rg8 {[%clk 00:00:58]} {[%emt 00:00:07]} 39.
Qf4 {[%clk 00:10:45]} {[%emt 00:00:08]} Rg4 {[%clk 00:00:34]} {[%emt 00:00:55]}
1/2-1/2